bitfinex-derivatives/quotes_BTCF0:USTF0_20250405
["timestamp","ask_amount","ask_price","bid_price","bid_amount"]
[1743826009893,0.3789931,83834.0,83833.0,0.41276]
[1743826012700,0.3789931,83834.0,83833.0,0.05196]
[1743826012900,0.3789931,83834.0,83833.0,0.41276]
[1743826013500,0.3789931,83834.0,83833.0,0.05196]
[1743826013702,0.3789931,83834.0,83833.0,0.41276]
[1743826015601,0.3789931,83834.0,83833.0,0.05196]
[1743826015799,0.3789931,83834.0,83833.0,0.41276]
[1743826016300,0.3789931,83834.0,83833.0,0.36236]
[1743826016496,0.3789931,83834.0,83833.0,0.41276]
[1743826017904,0.3789931,83834.0,83833.0,0.05196]
[1743826018206,0.3789931,83834.0,83833.0,0.41276]
[1743826019108,0.3789931,83834.0,83833.0,0.05196]
[1743826019307,0.3789931,83834.0,83833.0,0.41276]
[1743826019807,0.3789931,83834.0,83833.0,0.05196]
[1743826020008,0.3789931,83834.0,83833.0,0.41276]
[1743826020212,0.3789931,83834.0,83833.0,0.05196]
[1743826020603,0.3789931,83834.0,83833.0,0.41276]
[1743826021908,0.3789931,83834.0,83833.0,0.05196]
[1743826022213,0.3789931,83834.0,83833.0,0.41276]
[1743826022911,0.3789931,83834.0,83833.0,0.05196]
[1743826023110,0.3789931,83834.0,83833.0,0.41276]
[1743826023302,0.3789931,83834.0,83833.0,0.05196]
[1743826023502,0.3789931,83834.0,83833.0,0.41276]
[1743826023915,0.3789931,83834.0,83833.0,0.05196]
[1743826024111,0.3789931,83834.0,83833.0,0.41276]
[1743826024914,0.3789931,83834.0,83833.0,0.05196]
[1743826025102,0.3789931,83834.0,83833.0,0.41276]
[1743826025303,0.3789931,83834.0,83833.0,0.05196]
[1743826025607,0.3789931,83834.0,83833.0,0.41276]
[1743826026213,0.3789931,83834.0,83833.0,0.36236]
[1743826026507,0.1193414,83825.0,83824.0,0.4112]
[1743826026708,0.1193414,83825.0,83824.0,0.4122]
[1743826027313,0.1791414,83825.0,83824.0,0.3618]
[1743826027709,0.3791414,83825.0,83824.0,0.3618]
[1743826038826,0.3193414,83825.0,83824.0,0.3618]
[1743826054035,0.3193414,83825.0,83824.0,0.4122]
[1743826055129,0.3487414,83825.0,83824.0,0.4122]
[1743826056428,0.3193414,83825.0,83824.0,0.4122]
[1743826059337,0.3193414,83825.0,83824.0,0.0514]
[1743826060338,0.3193414,83825.0,83824.0,0.001]
[1743826062831,0.3493414,83825.0,83824.0,0.001]
[1743826063126,0.3787414,83825.0,83824.0,0.001]
[1743826064940,0.3493414,83825.0,83824.0,0.001]
[1743826067544,0.3193414,83825.0,83824.0,0.001]
[1743826073631,0.3509414,83825.0,83824.0,0.001]
[1743826076042,0.3193414,83825.0,83824.0,0.001]
[1743826084748,0.1193585,83813.0,83801.0,0.96956]
[1743826084942,0.1193585,83813.0,83812.0,0.05961597]
[1743826085140,0.1200785,83813.0,83812.0,0.06033597]
[1743826086051,0.3200785,83813.0,83812.0,0.06033597]
[1743826088053,0.3200785,83813.0,83812.0,0.15363597]
[1743826091346,0.3200785,83813.0,83812.0,0.10323597]
[1743826091545,0.3200785,83813.0,83812.0,0.15363597]
[1743826095958,0.3200785,83813.0,83812.0,0.09173597]
[1743826096161,0.20072,83813.0,83809.0,0.0504]
[1743826096359,0.1193628,83810.0,83809.0,0.0006]
[1743826096558,0.1193713,83804.0,83803.0,0.0504]
[1743826096862,0.1193713,83804.0,83803.0,0.051]
[1743826097067,0.1201313,83804.0,83803.0,0.051]
[1743826097362,0.1201313,83804.0,83803.0,0.0639097]
[1743826097568,0.3830313,83804.0,83803.0,0.0639097]
[1743826097775,0.3830313,83804.0,83803.0,0.0006]
[1743826098258,0.3830313,83804.0,83803.0,0.00970286]
[1743826101159,0.3830313,83804.0,83803.0,6e-08]
[1743826101361,0.1193799,83798.0,83797.0,0.031]
[1743826101561,0.12049991,83798.0,83797.0,0.0316]
[1743826101962,0.0597003,83784.0,83781.0,0.0614]
[1743826102158,0.1194027,83782.0,83781.0,0.062]
[1743826102365,0.12052271,83782.0,83781.0,0.1124]
[1743826106475,0.12052271,83782.0,83781.0,0.13432979]
[1743826115774,0.12052271,83782.0,83781.0,0.13436979]
[1743826116365,0.15272271,83782.0,83781.0,0.13436979]
[1743826118778,0.15272271,83782.0,83781.0,0.49516979]
[1743826134885,0.15272271,83782.0,83781.0,0.44472979]
[1743826135094,0.15272271,83782.0,83781.0,0.49516979]
[1743826139689,0.15272271,83782.0,83781.0,0.61457389]
[1743826141290,0.12052271,83782.0,83781.0,0.61457389]
[1743826145483,0.12052271,83782.0,83781.0,0.49516979]
[1743826149895,0.12052271,83782.0,83781.0,0.13436979]
[1743826150108,0.12052271,83782.0,83781.0,0.49516979]
[1743826150290,0.12052271,83782.0,83781.0,0.61457389]
[1743826150491,0.1194027,83782.0,83781.0,0.64727389]
[1743826152009,0.1194027,83782.0,83781.0,0.28647389]
[1743826152208,0.1204827,83782.0,83781.0,0.64727389]
[1743826152506,0.1194027,83782.0,83781.0,0.64727389]
[1743826152906,0.1194027,83782.0,83781.0,0.52786979]
[1743826153093,0.12044271,83782.0,83781.0,0.52786979]
[1743826153507,0.1194027,83782.0,83781.0,0.52786979]
[1743826156009,0.12044271,83782.0,83781.0,0.52786979]
[1743826156512,0.1512027,83782.0,83781.0,0.52786979]
[1743826160402,0.15232271,83782.0,83781.0,0.52786979]
[1743826161812,0.15232271,83782.0,83781.0,0.52782979]
[1743826166707,0.0596968,83789.0,83786.0,0.1790921]
[1743826167008,0.1193984,83785.0,83784.0,0.0596995]
[1743826167209,0.1194027,83782.0,83781.0,0.43312979]
[1743826169816,0.1194027,83782.0,83781.0,0.07232979]
[1743826170014,0.1517827,83782.0,83781.0,0.43372979]
[1743826170809,0.1517827,83782.0,83781.0,0.07292979]
[1743826171009,0.1517827,83782.0,83781.0,0.43372979]
[1743826172418,0.1517827,83782.0,83781.0,0.38332979]
[1743826172624,0.1517827,83782.0,83781.0,0.43372979]
[1743826173122,0.1517827,83782.0,83781.0,0.07292979]
[1743826173418,0.1517827,83782.0,83781.0,0.55313389]
[1743826176425,0.1517827,83782.0,83781.0,0.58333389]
[1743826176813,0.1200827,83782.0,83781.0,0.58333389]
[1743826177014,0.1194027,83782.0,83781.0,0.58333389]
[1743826177215,0.1201627,83782.0,83781.0,0.58333389]
[1743826178725,0.1193949,83788.0,83787.0,0.1193956]
[1743826178926,0.1200749,83788.0,83787.0,0.1200756]
[1743826180025,0.1200749,83788.0,83787.0,0.1512756]
[1743826180220,0.1519749,83788.0,83787.0,0.1512756]
[1743826180422,0.1519749,83788.0,83787.0,0.8728756]
[1743826182122,0.1519749,83788.0,83787.0,0.9057756]
[1743826184026,0.1519749,83788.0,83787.0,0.1841756]
[1743826184525,0.1519749,83788.0,83787.0,0.9057756]
[1743826186028,0.1519749,83788.0,83787.0,0.1841756]
[1743826186328,0.1519749,83788.0,83787.0,0.9057756]
[1743826187132,0.1519749,83788.0,83787.0,0.1841756]
[1743826187431,0.1519749,83788.0,83787.0,0.9057756]
[1743826187832,0.1519749,83788.0,83787.0,0.1841756]
[1743826188037,0.1519749,83788.0,83787.0,0.9057756]
[1743826189132,0.1519749,83788.0,83787.0,0.1841756]
[1743826189631,0.1519749,83788.0,83787.0,0.9057756]
[1743826189825,0.1519749,83788.0,83787.0,0.1841756]
[1743826190025,0.1519749,83788.0,83787.0,0.9057756]
[1743826190227,0.1519749,83788.0,83787.0,0.1841756]
[1743826190432,0.1519749,83788.0,83787.0,0.9057756]
[1743826191234,0.1519749,83788.0,83787.0,0.1841756]
[1743826191531,0.1519749,83788.0,83787.0,0.9057756]
[1743826191934,0.1519749,83788.0,83787.0,0.1841756]
[1743826192123,0.1519749,83788.0,83787.0,0.9057756]
[1743826193330,0.0308,83796.0,83791.0,0.0596943]
[1743826193523,0.0307,83803.0,83802.0,0.1193742]
[1743826193728,0.1193734,83803.0,83802.0,0.5314542]
[1743826194334,0.12025341,83803.0,83802.0,0.41208]
[1743826196737,0.15315341,83803.0,83802.0,0.41208]
[1743826197234,0.15315341,83803.0,83802.0,0.77288]
[1743826200034,0.18455341,83803.0,83802.0,0.77288]
[1743826204139,0.18455341,83803.0,83802.0,0.36168]
[1743826204348,0.18455341,83803.0,83802.0,0.41208]
[1743826205632,0.38455341,83803.0,83802.0,0.41208]
[1743826206949,0.38455341,83803.0,83802.0,0.36168]
[1743826207146,0.38455341,83803.0,83802.0,0.41208]
[1743826212656,0.38455341,83803.0,83802.0,0.44248]
[1743826215760,0.38455341,83803.0,83802.0,0.08168]
[1743826215952,0.38455341,83803.0,83802.0,0.0808]
[1743826216151,0.38455341,83803.0,83802.0,0.08176]
[1743826216348,0.38455341,83803.0,83802.0,0.11376]
[1743826217842,0.35315341,83803.0,83802.0,0.11376]
[1743826218049,0.32025341,83803.0,83802.0,0.14546]
[1743826227965,0.0314,83814.0,83802.0,0.14546]
[1743826228163,0.1193665,83808.0,83807.0,0.1193644]
[1743826228363,0.1193665,83808.0,83807.0,0.1205244]
[1743826228757,0.1193665,83808.0,83807.0,0.1823244]
[1743826231266,0.1193665,83808.0,83807.0,0.9039244]
[1743826231856,0.0305,83818.0,83807.0,0.78456]
[1743826231857,0.0596761,83818.0,83807.0,0.78456]
[1743826232168,0.1193514,83818.0,83817.0,0.3608]
[1743826232369,0.1193514,83818.0,83817.0,0.4124]
[1743826232962,0.3193514,83818.0,83817.0,0.4124]
[1743826235474,0.3193514,83818.0,83817.0,0.42785617]
[1743826236869,0.3511514,83818.0,83817.0,0.42785617]
[1743826243263,0.3511514,83818.0,83817.0,0.06705617]
[1743826243465,0.3511514,83818.0,83817.0,0.42785617]
[1743826244375,0.3511514,83818.0,83817.0,0.06705617]
[1743826244673,0.3511514,83818.0,83817.0,0.42785617]
[1743826253675,0.3511514,83818.0,83817.0,0.37745617]
[1743826253882,0.3511514,83818.0,83817.0,0.42781617]
[1743826266289,0.3193514,83818.0,83817.0,0.42781617]
[1743826268593,0.3193514,83818.0,83817.0,0.06701617]
[1743826268790,0.3193514,83818.0,83817.0,0.42781617]
[1743826275986,0.0596707,83826.0,83817.0,0.42781617]
[1743826275987,0.0596702,83826.0,83823.0,0.1193415]
[1743826276293,0.0596702,83826.0,83825.0,0.3608]
[1743826276493,0.0596629,83836.0,83825.0,0.4216704]
[1743826276494,0.1193387,83828.0,83825.0,0.4216704]
[1743826276695,0.1193387,83828.0,83827.0,0.1193372]
[1743826276880,0.11934,83826.0,83825.0,0.4827704]
[1743826277496,0.11934,83826.0,83825.0,0.4839304]
[1743826277700,0.11934,83826.0,83825.0,0.1231304]
[1743826277888,0.11934,83826.0,83825.0,0.8447304]
[1743826281200,0.11934,83826.0,83825.0,0.85370994]
[1743826281497,0.0596661,83832.0,83828.0,0.1193372]
[1743826281798,0.1193345,83831.0,83830.0,0.1193329]
[1743826281990,0.1193345,83831.0,83830.0,0.1709329]
[1743826283590,0.1193345,83831.0,83830.0,0.8925329]
[1743826284299,0.1193345,83831.0,83830.0,0.7732]
[1743826288006,0.032,83840.0,83830.0,0.7732]
[1743826288199,0.10723479,83840.0,83839.0,0.3608]
[1743826288506,0.10723479,83840.0,83839.0,0.36196]
[1743826289707,0.12723479,83840.0,83839.0,0.36196]
[1743826290702,0.12723479,83840.0,83839.0,0.39316]
[1743826292310,0.12723479,83840.0,83839.0,0.42636]
[1743826293294,0.12723479,83840.0,83839.0,0.39516]
[1743826293497,0.12723479,83840.0,83839.0,0.44552]
[1743826293909,0.18993479,83840.0,83839.0,0.44552]
[1743826308630,0.18993479,83840.0,83839.0,0.39516]
[1743826308936,0.18993479,83840.0,83839.0,0.44552]
[1743826310831,0.18993479,83840.0,83839.0,0.36196]
[1743826311639,0.18993479,83840.0,83839.0,0.00116]
[1743826311827,0.38993479,83840.0,83839.0,0.00116]
[1743826318431,0.32723479,83840.0,83839.0,0.00116]
[1743826319028,0.32723479,83840.0,83839.0,0.06466]
[1743826321946,0.32723479,83840.0,83839.0,0.1839815]
[1743826322742,0.32723479,83840.0,83839.0,0.06466]
[1743826324244,0.32723479,83840.0,83839.0,0.1839815]
[1743826325045,0.32723479,83840.0,83839.0,0.06466]
[1743826331341,0.32723479,83840.0,83839.0,0.11502]
[1743826331543,0.32723479,83840.0,83839.0,0.06466]
[1743826331744,0.32723479,83840.0,83839.0,0.08242]
[1743826331946,0.38933479,83840.0,83839.0,0.08242]
[1743826332745,0.38933479,83840.0,83839.0,0.03206]
[1743826332947,0.178995,83833.0,83832.0,0.05036]
[1743826334049,0.378995,83833.0,83832.0,0.05036]
[1743826334556,0.1193372,83828.0,83827.0,0.03]
[1743826334757,0.1193372,83828.0,83827.0,0.08036]
[1743826335158,0.1201372,83828.0,83827.0,0.08116]
[1743826335358,0.1499372,83828.0,83827.0,0.0308]
[1743826335658,0.1806372,83828.0,83827.0,0.0308]
[1743826336250,0.3806372,83828.0,83827.0,0.0308]
[1743826348768,0.11934,83826.0,83825.0,0.00897954]
[1743826348969,0.1193414,83825.0,83824.0,0.05036]
[1743826349165,0.1510414,83825.0,83824.0,0.05036]
[1743826350674,0.18204141,83825.0,83824.0,0.05096]
[1743826351074,0.38204141,83825.0,83824.0,0.05096]
[1743826351879,0.38204141,83825.0,83824.0,0.08156]
[1743826352580,0.38204141,83825.0,83824.0,0.09036978]
[1743826356587,0.35164141,83825.0,83824.0,0.09036978]
[1743826362086,0.31994141,83825.0,83824.0,0.09036978]
[1743826366989,0.31994141,83825.0,83824.0,0.04000978]
[1743826377008,0.31994141,83825.0,83824.0,0.40080978]
[1743826381206,0.31994141,83825.0,83824.0,0.04000978]
[1743826381405,0.31994141,83825.0,83824.0,0.40080978]
[1743826384010,0.31994141,83825.0,83824.0,0.04000978]
[1743826384310,0.31994141,83825.0,83824.0,0.40080978]
[1743826384807,0.31994141,83825.0,83824.0,0.45116978]
[1743826385005,0.31994141,83825.0,83824.0,0.09036978]
[1743826385206,0.31994141,83825.0,83824.0,0.45116978]
[1743826394916,0.31994141,83825.0,83824.0,0.09036978]
[1743826399717,0.31994141,83825.0,83824.0,0.12306978]
[1743826408225,0.31994141,83825.0,83824.0,0.48386978]
[1743826408919,0.31994141,83825.0,83824.0,0.12306978]
[1743826409117,0.31994141,83825.0,83824.0,0.48386978]
[1743826411928,0.31994141,83825.0,83824.0,0.12306978]
[1743826412119,0.31994141,83825.0,83824.0,0.48386978]
[1743826413021,0.31994141,83825.0,83824.0,0.12306978]
[1743826413326,0.31994141,83825.0,83824.0,0.48386978]
[1743826431140,0.31994141,83825.0,83824.0,0.84466978]
[1743826432039,0.31994141,83825.0,83824.0,0.12306978]
[1743826432243,0.31994141,83825.0,83824.0,0.84466978]
[1743826433340,0.35144141,83825.0,83824.0,0.84466978]
[1743826434439,0.35144141,83825.0,83824.0,0.12306978]
[1743826434740,0.35144141,83825.0,83824.0,0.48386978]
[1743826436849,0.35144141,83825.0,83824.0,0.12306978]
[1743826437145,0.35144141,83825.0,83824.0,0.48386978]
[1743826438950,0.38344141,83825.0,83824.0,0.48386978]
[1743826443342,0.38344141,83825.0,83824.0,0.12306978]
[1743826443542,0.38344141,83825.0,83824.0,0.48386978]
[1743826443748,0.31994141,83825.0,83824.0,0.48386978]
[1743826457859,0.20060001,83825.0,83824.0,0.48386978]
[1743826458056,0.19347119,83825.0,83824.0,0.48386978]
[1743826458257,0.19347119,83825.0,83824.0,0.60321268]
[1743826458457,0.18826243,83825.0,83824.0,0.60321268]
[1743826458663,0.00076,83825.0,83824.0,0.60321268]
[1743826458854,0.119333,83831.0,83825.0,0.1193403]
[1743826459056,0.119333,83831.0,83830.0,0.3608]
[1743826459255,0.0331,83839.0,83830.0,0.3616]
[1743826459462,0.1193215,83839.0,83838.0,0.3608]
[1743826459665,0.1200815,83839.0,83838.0,0.41188]
[1743826461267,0.3200815,83839.0,83838.0,0.41188]
[1743826461667,0.3523815,83839.0,83838.0,0.41188]
[1743826462369,0.3523815,83839.0,83838.0,0.05108]
[1743826462565,0.3523815,83839.0,83838.0,0.41188]
[1743826463071,0.4131815,83839.0,83838.0,0.41188]
[1743826486986,0.3826815,83839.0,83838.0,0.41188]
[1743826487793,0.3523815,83839.0,83838.0,0.41188]
[1743826499492,0.3848815,83839.0,83838.0,0.41188]
[1743826503101,0.3848815,83839.0,83838.0,0.05108]
[1743826503399,0.3848815,83839.0,83838.0,0.41112]
[1743826503593,0.3848815,83839.0,83838.0,0.41192]
[1743826504100,0.3848815,83839.0,83838.0,0.05112]
[1743826504300,0.3848815,83839.0,83838.0,0.41112]
[1743826504498,0.3848815,83839.0,83838.0,0.41188]
[1743826504902,0.3523815,83839.0,83838.0,0.41188]
[1743826505198,0.3200815,83839.0,83838.0,0.41188]
[1743826505599,0.3520815,83839.0,83838.0,0.41188]
[1743826510501,0.3520815,83839.0,83838.0,0.05108]
[1743826510690,0.3520815,83839.0,83838.0,0.41112]
[1743826510891,0.3520815,83839.0,83838.0,0.41188]
[1743826521404,0.3520815,83839.0,83838.0,0.05108]
[1743826521705,0.3520815,83839.0,83838.0,0.41112]
[1743826521904,0.3520815,83839.0,83838.0,0.41188]
[1743826523906,0.3200815,83839.0,83838.0,0.41188]
[1743826525108,0.3200815,83839.0,83838.0,0.05108]
[1743826525313,0.3200815,83839.0,83838.0,0.41188]
[1743826526403,0.3508815,83839.0,83838.0,0.41188]
[1743826531407,0.3200815,83839.0,83838.0,0.41188]
[1743826532613,0.3200815,83839.0,83838.0,0.05108]
[1743826532816,0.3200815,83839.0,83838.0,0.41188]
[1743826534717,0.3200815,83839.0,83838.0,0.05108]
[1743826535011,0.3200815,83839.0,83838.0,0.41188]
[1743826536110,0.3200815,83839.0,83838.0,0.05108]
[1743826536498,0.3200815,83839.0,83838.0,0.41188]
[1743826537210,0.3200815,83839.0,83838.0,0.05108]
[1743826537813,0.3200815,83839.0,83838.0,0.41188]
[1743826538206,0.3510815,83839.0,83838.0,0.41188]
[1743826538717,0.3510815,83839.0,83838.0,0.05108]
[1743826539008,0.3510815,83839.0,83838.0,0.41188]
[1743826540618,0.3510815,83839.0,83838.0,0.05108]
[1743826540911,0.3510815,83839.0,83838.0,0.41112]
[1743826541116,0.3510815,83839.0,83838.0,0.41188]
[1743826541513,0.23176,83839.0,83825.0,0.60872]
[1743826541712,0.2386657,83831.0,83830.0,0.3070426]
[1743826541905,0.11934,83826.0,83825.0,0.4505235]
[1743826542106,0.12002,83826.0,83825.0,0.3309727]
[1743826542716,0.18482,83826.0,83825.0,0.3309727]
[1743826543704,0.18482,83826.0,83825.0,0.2806527]
[1743826543907,0.38482,83826.0,83825.0,0.2806527]
[1743826559318,0.38482,83826.0,83825.0,0.3124527]
[1743826559932,0.38482,83826.0,83825.0,0.0324]
[1743826560539,0.38482,83826.0,83825.0,0.0006]
[1743826560731,0.1193414,83825.0,83823.0,0.0327]
[1743826560927,0.1193429,83824.0,83823.0,0.0327]
[1743826561130,0.1833829,83824.0,83823.0,0.0333]
[1743826562226,0.3833829,83824.0,83823.0,0.0333]
[1743826564537,0.3833829,83824.0,83823.0,0.04239204]
[1743826570232,0.3530829,83824.0,83823.0,0.04239204]
[1743826581642,0.3199829,83824.0,83823.0,0.04239204]
[1743826583752,0.1193457,83822.0,83821.0,4e-08]
[1743826583939,0.11935,83819.0,83818.0,0.08276894]
[1743826584245,0.12043,83819.0,83818.0,0.08344894]
[1743826586040,0.12043,83819.0,83818.0,0.09250209]
[1743826586947,0.12043,83819.0,83818.0,0.12440209]
[1743826587247,0.12043,83819.0,83818.0,0.15600209]
[1743826588938,0.12043,83819.0,83818.0,0.07408209]
[1743826598253,0.12043,83819.0,83818.0,0.10668209]
[1743826602353,0.12043,83819.0,83818.0,0.10600209]
[1743826613666,0.15203,83819.0,83818.0,0.10600209]
[1743826624975,0.15203,83819.0,83818.0,0.07340209]
[1743826628671,0.15203,83819.0,83818.0,0.10370209]
[1743826628872,0.00108,83819.0,83818.0,0.10370209]
[1743826629081,0.11935,83819.0,83818.0,0.10370209]
[1743826629273,0.12039001,83819.0,83818.0,0.10370209]
[1743826635578,0.18469001,83819.0,83818.0,0.10370209]
[1743826635981,0.18469001,83819.0,83818.0,0.00905315]
[1743826636174,0.18469001,83819.0,83818.0,0.05937315]
[1743826636383,0.0596836,83807.0,83803.0,0.21501214]
[1743826636589,0.1193699,83805.0,83804.0,0.05032]
[1743826636783,0.1193785,83799.0,83798.0,0.21501214]
[1743826637084,0.1203785,83799.0,83798.0,4e-08]
[1743826637990,0.1837785,83799.0,83798.0,4e-08]
[1743826638688,0.3837785,83799.0,83798.0,4e-08]
[1743826639781,0.119387,83793.0,83792.0,0.29896474]
[1743826640281,0.120387,83793.0,83792.0,0.29896474]
[1743826640781,0.214587,83793.0,83792.0,0.01257351]
[1743826640982,0.1193899,83791.0,83790.0,0.00017891]
[1743826641287,0.12042991,83791.0,83790.0,0.00017891]
[1743826644095,0.12042991,83791.0,83790.0,0.00910865]
[1743826644286,0.12042991,83791.0,83790.0,0.021582]
[1743826659902,0.32042991,83791.0,83790.0,0.021582]
[1743826686118,0.32042991,83791.0,83790.0,0.051882]
[1743826688610,0.12042991,83791.0,83790.0,0.051882]
[1743826690019,0.15282991,83791.0,83790.0,0.051882]
[1743826713548,0.15282991,83791.0,83790.0,0.021582]
[1743826740665,0.03344001,83791.0,83790.0,0.021582]
[1743826740970,0.15282991,83791.0,83790.0,0.052582]
[1743826742059,0.15282991,83791.0,83790.0,0.413382]
[1743826742460,0.12042991,83791.0,83790.0,0.413382]
[1743826749067,0.15172991,83791.0,83790.0,0.413382]
[1743826750571,0.15172991,83791.0,83790.0,0.052582]
[1743826751064,0.15172991,83791.0,83790.0,0.083582]
[1743826752674,0.15172991,83791.0,83790.0,0.444382]
[1743826767986,0.15172991,83791.0,83790.0,0.083582]
[1743826768175,0.15172991,83791.0,83790.0,0.444382]
[1743826776377,0.15172991,83791.0,83790.0,0.413382]
[1743826782594,0.15172991,83791.0,83790.0,0.052582]
[1743826782793,0.15172991,83791.0,83790.0,0.413382]
[1743826789997,0.03234001,83791.0,83790.0,0.413382]
[1743826790198,0.0313,83791.0,83790.0,0.413382]
[1743826791294,0.1506899,83791.0,83790.0,0.413382]
[1743826791495,0.15172991,83791.0,83790.0,0.413382]
[1743826792796,0.18382991,83791.0,83790.0,0.413382]
[1743826793699,0.06444001,83791.0,83790.0,0.413382]
[1743826795203,0.18382991,83791.0,83790.0,0.413382]
[1743826799302,0.18382991,83791.0,83790.0,0.052582]
[1743826799503,0.18382991,83791.0,83790.0,0.413382]
[1743826808121,0.18382991,83791.0,83790.0,0.052582]
[1743826808321,0.18382991,83791.0,83790.0,0.413382]
[1743826808819,0.18382991,83791.0,83790.0,0.052582]
[1743826809320,0.18382991,83791.0,83790.0,0.413382]
[1743826813023,0.18382991,83791.0,83790.0,0.052582]
[1743826813323,0.18382991,83791.0,83790.0,0.413382]
[1743826825133,0.18382991,83791.0,83790.0,0.052582]
[1743826825335,0.18382991,83791.0,83790.0,0.413382]
[1743826825731,0.18382991,83791.0,83790.0,0.052582]
[1743826826234,0.18382991,83791.0,83790.0,0.413382]
[1743826828533,0.18382991,83791.0,83790.0,0.382382]
[1743826828833,0.18382991,83791.0,83790.0,0.3582644]
[1743826829021,0.18382991,83791.0,83790.0,0.05032]
[1743826829435,0.18382991,83791.0,83790.0,0.06263103]
[1743826829836,0.38382991,83791.0,83790.0,0.06263103]
[1743826832437,0.38382991,83791.0,83790.0,0.07166327]
[1743826835236,0.38382991,83791.0,83790.0,0.02134327]
[1743826835439,0.1193941,83788.0,83787.0,0.05032]
[1743826835634,0.1203941,83788.0,83787.0,0.05032]
[1743826836240,0.1824941,83788.0,83787.0,0.05032]
[1743826837940,0.1824941,83788.0,83787.0,0.05930565]
[1743826839540,0.1824941,83788.0,83787.0,0.07181413]
[1743826860461,0.1824941,83788.0,83787.0,0.10391413]
[1743826863072,0.4204794,83813.0,83789.0,0.119392]
[1743826863361,0.3608,83813.0,83798.0,0.1193795]
[1743826863555,0.4801727,83804.0,83799.0,0.0643]
[1743826863758,0.1193745,83802.0,83800.0,0.08192]
[1743826864065,0.3608,83804.0,83800.0,0.08192]
[1743826864266,0.1193756,83801.0,83800.0,0.08192]
[1743826865072,0.1200956,83801.0,83800.0,0.08256]
[1743826866256,0.00072,83801.0,83800.0,0.08256]
[1743826866456,0.3608,83821.0,83800.0,0.08192]
[1743826866664,0.00085864,83807.0,83806.0,0.3608]
[1743826866868,0.00017864,83807.0,83806.0,0.36152]
[1743826868167,0.0326,83812.0,83806.0,0.36152]
[1743826868367,0.1193475,83821.0,83811.0,0.0596804]
[1743826868571,0.1193544,83816.0,83812.0,0.0328]
[1743826868771,0.1193571,83814.0,83813.0,0.05028]
[1743826869070,0.12031711,83814.0,83813.0,0.05116]
[1743826876375,0.15321711,83814.0,83813.0,0.05116]
[1743826876874,0.15321711,83814.0,83813.0,0.00088]
[1743826877076,0.15321711,83814.0,83813.0,0.05116]
[1743826878166,0.00096001,83814.0,83813.0,0.05116]
[1743826878373,0.00017902,83822.0,83813.0,0.05116]
[1743826878574,0.0326,83821.0,83818.0,0.3608]
[1743826878773,0.0326,83821.0,83818.0,0.36168]
[1743826880282,0.15282741,83821.0,83818.0,0.36168]
[1743826882282,0.15282741,83821.0,83819.0,0.0301]
[1743826882483,0.1193486,83820.0,83819.0,0.03102]
[1743826882776,0.12022861,83820.0,83819.0,0.03102]
[1743826883676,0.12022861,83820.0,83819.0,0.06212]
[1743826887271,0.00088001,83820.0,83819.0,0.06212]
[1743826887477,0.0326,83821.0,83819.0,0.06212]
[1743826887982,0.1519472,83821.0,83819.0,0.06212]
[1743826889582,0.1821472,83821.0,83819.0,0.06212]
[1743826890687,0.1193486,83820.0,83819.0,0.06212]
[1743826890889,0.1202686,83820.0,83819.0,0.06212]
[1743826891080,0.1839686,83820.0,83819.0,0.06212]
[1743826893292,0.1839686,83820.0,83819.0,0.42292]
[1743826894892,0.1830486,83820.0,83819.0,0.42292]
[1743826895893,0.1836886,83820.0,83819.0,0.42292]
[1743826899290,0.1836886,83820.0,83819.0,0.06212]
[1743826899492,0.1836886,83820.0,83819.0,0.42292]
[1743826901014,0.1836886,83820.0,83819.0,0.39182]
[1743826907216,0.1836886,83820.0,83819.0,0.4421]
[1743826911220,0.1836886,83820.0,83819.0,0.0813]
[1743826911414,0.1836886,83820.0,83819.0,0.4421]
[1743826913317,0.1836886,83820.0,83819.0,0.0813]
[1743826913518,0.1836886,83820.0,83819.0,0.4421]
[1743826917824,0.1830486,83820.0,83819.0,0.4421]
[1743826918024,0.1830486,83820.0,83819.0,0.412]
[1743826918729,0.3830486,83820.0,83819.0,0.412]
[1743826919430,0.3830486,83820.0,83819.0,0.0512]
[1743826919729,0.3830486,83820.0,83819.0,0.412]
[1743826920138,0.38392861,83820.0,83819.0,0.36172]
[1743826920522,0.53392861,83820.0,83819.0,0.0512]
[1743826920740,0.1193557,83815.0,83814.0,0.60876]
[1743826920927,0.1199957,83815.0,83814.0,0.65968]
[1743826921128,0.2699957,83815.0,83814.0,0.65968]
[1743826921737,0.3354957,83815.0,83814.0,0.65968]
[1743826922126,0.1854957,83815.0,83814.0,0.65968]
[1743826922525,0.3854957,83815.0,83814.0,0.65968]
[1743826925735,0.3854957,83815.0,83814.0,0.6094]
[1743826931627,0.3854957,83815.0,83814.0,0.00064]
[1743826931838,0.1193614,83811.0,83810.0,0.05028]
[1743826932040,0.1200014,83811.0,83810.0,0.05028]
[1743826932634,0.3836014,83811.0,83810.0,0.05028]
[1743826933032,0.1193685,83806.0,83801.0,0.032]
[1743826933233,0.1200085,83806.0,83805.0,0.05109902]
[1743826933834,0.1833085,83806.0,83805.0,0.05109902]
[1743826934240,0.3833085,83806.0,83805.0,0.05109902]
[1743826941252,0.3833085,83806.0,83805.0,0.08419902]
[1743826943558,0.3833085,83806.0,83805.0,0.03391902]
[1743826943764,0.3833085,83806.0,83805.0,0.08419902]
[1743826948666,0.3833085,83806.0,83805.0,0.11529902]
[1743826952475,0.1193899,83791.0,83790.0,0.43262084]
[1743826952668,0.1193899,83791.0,83790.0,0.41168]
[1743826953263,0.1201499,83791.0,83790.0,0.41168]
[1743826954077,0.3505499,83791.0,83790.0,0.41168]
[1743826956567,0.3505499,83791.0,83790.0,0.05088]
[1743826960679,0.3505499,83791.0,83790.0,0.0006]
[1743826960872,0.3505499,83791.0,83790.0,0.05088]
[1743826982703,0.3505499,83791.0,83790.0,0.05028]
[1743826982903,0.3505499,83791.0,83790.0,0.05092]
[1743826983999,0.3505499,83791.0,83790.0,0.05028]
[1743826984195,0.3505499,83791.0,83790.0,0.051]
[1743826987713,0.3201499,83791.0,83790.0,0.051]
[1743826987916,0.3514499,83791.0,83790.0,0.051]
[1743826989410,0.00017902,83799.0,83790.0,0.051]
[1743826989411,0.0596847,83806.0,83790.0,0.2606956]
[1743826989599,0.5328113,83804.0,83803.0,0.3608]
[1743826989805,0.5328113,83804.0,83803.0,0.4118]
[1743826993004,0.5630113,83804.0,83803.0,0.4118]
[1743826994209,0.5630113,83804.0,83803.0,0.4433]